[Event "*** SCC Grand Prix: Titled Tuesday Blitz"]
[Site "Chess.com"]
[Date "2020.07.07"]
[Round "1"]
[White "SGchess01"]
[Black "shanemelaughcm"]
[Result "1-0"]
[WhiteElo "2612"]
[BlackElo "2282"]
[TimeControl "180+1"]
[EndTime "10:01:41 PDT"]
[Termination "SGchess01 won by resignation"]

1. e4 {[%clk 0:03:00.9]} 1... d6 {[%clk 0:02:57.5]} 2. d4 {[%clk 0:03:00.8]}
2... Nf6 {[%clk 0:02:56.7]} 3. Nc3 {[%clk 0:03:01.3]} 3... Nbd7 {[%clk
0:02:55.4]} 4. Nf3 {[%clk 0:03:00.7]} 4... e5 {[%clk 0:02:55.8]} 5. Bc4 {[%clk
0:03:00.1]} 5... Be7 {[%clk 0:02:55]} 6. O-O {[%clk 0:03:00.4]} 6... c6 {[%clk
0:02:54.7]} 7. a4 {[%clk 0:03:00.1]} 7... h6 {[%clk 0:02:53.9]} 8. Re1 {[%clk
0:03:00.4]} 8... Qc7 {[%clk 0:02:53.9]} 9. a5 {[%clk 0:02:56.6]} 9... Nf8 {[%clk
0:02:51]} 10. h3 {[%clk 0:02:42.2]} 10... g5 {[%clk 0:02:48.6]} 11. d5 {[%clk
0:02:36.6]} 11... b5 {[%clk 0:02:28.4]} 12. axb6 {[%clk 0:02:34.5]} 12... Qxb6
{[%clk 0:02:27.3]} 13. dxc6 {[%clk 0:02:34.2]} 13... Qxc6 {[%clk 0:02:26.1]} 14.
Bb5 {[%clk 0:02:34]} 1-0

[Event "*** SCC Grand Prix: Titled Tuesday Blitz"]
[Site "Chess.com"]
[Date "2020.07.07"]
[Round "1"]
[White "winniethepooh04"]
[Black "dey2580"]
[Result "0-1"]
[WhiteElo "2224"]
[BlackElo "2571"]
[TimeControl "180+1"]
[EndTime "10:02:39 PDT"]
[Termination "dey2580 won by resignation"]

1. d4 {[%clk 0:03:00.9]} 1... Nf6 {[%clk 0:02:59.1]} 2. Nf3 {[%clk 0:03:00.5]}
2... e6 {[%clk 0:02:58.8]} 3. Bf4 {[%clk 0:03:01.1]} 3... c5 {[%clk 0:02:57]} 4.
e3 {[%clk 0:03:01.4]} 4... Qb6 {[%clk 0:02:56.6]} 5. Qc1 {[%clk 0:03:00.9]} 5...
d5 {[%clk 0:02:52.4]} 6. c3 {[%clk 0:03:00.8]} 6... Bd6 {[%clk 0:02:51.2]} 7.
Bg3 {[%clk 0:03:00.5]} 7... O-O {[%clk 0:02:21.7]} 8. Bd3 {[%clk 0:03:00.1]}
8... Bxg3 {[%clk 0:02:08.3]} 9. hxg3 {[%clk 0:03:01]} 9... h6 {[%clk 0:02:08.6]}
10. Nbd2 {[%clk 0:03:00.9]} 10... Nc6 {[%clk 0:02:08.2]} 11. O-O {[%clk
0:02:56]} 11... Re8 {[%clk 0:01:56.4]} 12. dxc5 {[%clk 0:02:54.7]} 12... Qxc5
{[%clk 0:01:56.5]} 13. e4 {[%clk 0:02:55]} 13... e5 {[%clk 0:01:56]} 14. exd5
{[%clk 0:02:50.7]} 14... Qxd5 {[%clk 0:01:55.8]} 15. Bc4 {[%clk 0:02:45.7]}
15... Qc5 {[%clk 0:01:54.2]} 16. Bb3 {[%clk 0:02:27.6]} 16... e4 {[%clk
0:01:50.7]} 17. Re1 {[%clk 0:02:27]} 17... exf3 {[%clk 0:01:48.6]} 18. Rxe8+
{[%clk 0:02:25.5]} 18... Nxe8 {[%clk 0:01:49.5]} 19. Nxf3 {[%clk 0:02:25.7]}
19... Be6 {[%clk 0:01:47.8]} 0-1

[Event "*** SCC Grand Prix: Titled Tuesday Blitz"]
[Site "Chess.com"]
[Date "2020.07.07"]
[Round "1"]
[White "NiranjanNavalgund"]
[Black "LittlePeasant"]
[Result "0-1"]
[WhiteElo "2405"]
[BlackElo "2757"]
[TimeControl "180+1"]
[EndTime "10:02:40 PDT"]
[Termination "LittlePeasant won by resignation"]

1. d4 {[%clk 0:02:59]} 1... Nf6 {[%clk 0:02:59.8]} 2. c4 {[%clk 0:02:59.1]} 2...
e6 {[%clk 0:03:00.7]} 3. g3 {[%clk 0:02:58.5]} 3... d5 {[%clk 0:03:00.8]} 4. Bg2
{[%clk 0:02:58.5]} 4... Bb4+ {[%clk 0:02:51.8]} 5. Bd2 {[%clk 0:02:57.9]} 5...
Be7 {[%clk 0:02:51.3]} 6. Nf3 {[%clk 0:02:57.6]} 6... O-O {[%clk 0:02:51.6]} 7.
O-O {[%clk 0:02:57.8]} 7... c6 {[%clk 0:02:52.5]} 8. Bf4 {[%clk 0:02:57.6]} 8...
Nbd7 {[%clk 0:02:52.7]} 9. Qc2 {[%clk 0:02:57.8]} 9... Ne4 {[%clk 0:02:53]} 10.
Nfd2 {[%clk 0:02:57]} 10... f5 {[%clk 0:02:51.7]} 11. f3 {[%clk 0:02:55.9]}
11... Nd6 {[%clk 0:02:51.5]} 12. c5 {[%clk 0:02:55.4]} 12... Nb5 {[%clk
0:02:36.5]} 13. Be3 {[%clk 0:02:52.5]} 13... e5 {[%clk 0:02:30.9]} 14. dxe5
{[%clk 0:02:51.8]} 14... Nxe5 {[%clk 0:02:30.7]} 15. Bf2 {[%clk 0:02:49.8]}
15... f4 {[%clk 0:02:28.4]} 16. Nc3 {[%clk 0:02:47.9]} 16... Bf5 {[%clk
0:02:22.4]} 17. Qb3 {[%clk 0:02:46]} 17... Nxc3 {[%clk 0:02:22.7]} 18. Qxc3
{[%clk 0:02:44.7]} 18... Bf6 {[%clk 0:02:16.9]} 19. Bd4 {[%clk 0:02:44.3]} 19...
Qe7 {[%clk 0:02:09.2]} 20. gxf4 {[%clk 0:02:44.6]} 20... Ng6 {[%clk 0:02:09.2]}
21. e4 {[%clk 0:02:37.2]} 21... Nxf4 {[%clk 0:02:06.5]} 22. Rae1 {[%clk
0:02:33.1]} 22... Bxd4+ {[%clk 0:02:01]} 23. Qxd4 {[%clk 0:02:34]} 23... Qg5
{[%clk 0:02:01.6]} 24. Rf2 {[%clk 0:02:32]} 24... Bh3 {[%clk 0:01:59.3]} 0-1

[Event "*** SCC Grand Prix: Titled Tuesday Blitz"]
[Site "Chess.com"]
[Date "2020.07.07"]
[Round "1"]
[White "cancrushyou"]
[Black "KaterynaLagno"]
[Result "0-1"]
[WhiteElo "2409"]
[BlackElo "2768"]
[TimeControl "180+1"]
[EndTime "10:02:54 PDT"]
[Termination "KaterynaLagno won by resignation"]

1. d4 {[%clk 0:03:00.6]} 1... Nf6 {[%clk 0:02:59.3]} 2. c4 {[%clk 0:03:01.2]}
2... g6 {[%clk 0:02:59.6]} 3. g3 {[%clk 0:03:01.3]} 3... Bg7 {[%clk 0:02:57.8]}
4. Bg2 {[%clk 0:03:01.7]} 4... O-O {[%clk 0:02:58.4]} 5. Nc3 {[%clk 0:03:02.2]}
5... Nc6 {[%clk 0:02:57.3]} 6. Nf3 {[%clk 0:03:01.8]} 6... d5 {[%clk 0:02:56.8]}
7. cxd5 {[%clk 0:02:59.7]} 7... Nxd5 {[%clk 0:02:57.7]} 8. O-O {[%clk
0:02:59.9]} 8... Nb6 {[%clk 0:02:58.2]} 9. e3 {[%clk 0:02:59.6]} 9... Re8 {[%clk
0:02:58.4]} 10. Nh4 {[%clk 0:03:00.1]} 10... a5 {[%clk 0:02:53.6]} 11. f4 {[%clk
0:02:58.6]} 11... a4 {[%clk 0:02:52.1]} 12. Bd2 {[%clk 0:02:40.4]} 12... Nc4
{[%clk 0:02:44.5]} 13. Qc2 {[%clk 0:02:37.3]} 13... Nb4 {[%clk 0:02:34.4]} 14.
Qc1 {[%clk 0:02:36.5]} 14... Nd3 {[%clk 0:02:33.7]} 15. Qc2 {[%clk 0:02:36.5]}
15... Ndxb2 {[%clk 0:02:31.7]} 16. Rab1 {[%clk 0:02:34.7]} 16... a3 {[%clk
0:02:30.1]} 17. Bd5 {[%clk 0:02:27.5]} 17... c6 {[%clk 0:02:22.6]} 18. Bxf7+
{[%clk 0:02:13.9]} 18... Kxf7 {[%clk 0:02:21]} 19. f5 {[%clk 0:02:14.3]} 19...
g5 {[%clk 0:02:18.7]} 20. f6 {[%clk 0:02:07.1]} 20... exf6 {[%clk 0:02:14.9]}
21. Qxh7 {[%clk 0:02:00.1]} 21... gxh4 {[%clk 0:02:12.2]} 22. Qh5+ {[%clk
0:01:56.2]} 22... Kg8 {[%clk 0:02:10.6]} 0-1

[Event "*** SCC Grand Prix: Titled Tuesday Blitz"]
[Site "Chess.com"]
[Date "2020.07.07"]
[Round "1"]
[White "Luibov_AN"]
[Black "FMJoseHerrera"]
[Result "0-1"]
[WhiteElo "2031"]
[BlackElo "2488"]
[TimeControl "180+1"]
[EndTime "10:02:54 PDT"]
[Termination "FMJoseHerrera won by resignation"]

1. d4 {[%clk 0:02:59.5]} 1... Nf6 {[%clk 0:02:59]} 2. Nf3 {[%clk 0:02:55.5]}
2... c5 {[%clk 0:02:58.4]} 3. dxc5 {[%clk 0:02:55]} 3... g6 {[%clk 0:02:58.4]}
4. c3 {[%clk 0:02:52.2]} 4... Bg7 {[%clk 0:02:58.6]} 5. Qc2 {[%clk 0:02:52.5]}
5... O-O {[%clk 0:02:58.1]} 6. Bg5 {[%clk 0:02:53]} 6... a5 {[%clk 0:02:57.9]}
7. a4 {[%clk 0:02:52.5]} 7... Na6 {[%clk 0:02:57.3]} 8. Nbd2 {[%clk 0:02:51.9]}
8... Nxc5 {[%clk 0:02:56.8]} 9. e4 {[%clk 0:02:52.2]} 9... d6 {[%clk 0:02:57.1]}
10. Bc4 {[%clk 0:02:50.1]} 10... Nfxe4 {[%clk 0:02:39.4]} 11. Nxe4 {[%clk
0:02:46]} 11... Bf5 {[%clk 0:02:35.4]} 12. Nfd2 {[%clk 0:02:24.6]} 12... d5
{[%clk 0:02:32]} 13. O-O {[%clk 0:02:21.6]} 13... Nxe4 {[%clk 0:02:25.6]} 14.
Nxe4 {[%clk 0:02:17.1]} 14... dxc4 {[%clk 0:02:20.9]} 15. Rfe1 {[%clk
0:02:08.6]} 15... Qd5 {[%clk 0:02:09.3]} 16. Rad1 {[%clk 0:01:54]} 16... Bxe4
{[%clk 0:02:06.9]} 0-1

[Event "*** SCC Grand Prix: Titled Tuesday Blitz"]
[Site "Chess.com"]
[Date "2020.07.07"]
[Round "1"]
[White "Maksimus1998"]
[Black "Izoria123"]
[Result "0-1"]
[WhiteElo "2445"]
[BlackElo "2903"]
[TimeControl "180+1"]
[EndTime "10:03:00 PDT"]
[Termination "Izoria123 won by resignation"]

1. d4 {[%clk 0:02:58.9]} 1... d6 {[%clk 0:02:59.7]} 2. e4 {[%clk 0:02:58]} 2...
g6 {[%clk 0:02:59.1]} 3. Nf3 {[%clk 0:02:57.5]} 3... Bg7 {[%clk 0:02:59.7]} 4.
c3 {[%clk 0:02:57.7]} 4... Nf6 {[%clk 0:02:59.9]} 5. Bd3 {[%clk 0:02:58.1]} 5...
O-O {[%clk 0:03:00.5]} 6. O-O {[%clk 0:02:58.4]} 6... Nc6 {[%clk 0:03:01]} 7. d5
{[%clk 0:02:57.8]} 7... Nb8 {[%clk 0:03:00.7]} 8. c4 {[%clk 0:02:57.9]} 8... Bg4
{[%clk 0:02:56.6]} 9. Nc3 {[%clk 0:02:56.8]} 9... Nbd7 {[%clk 0:02:55.5]} 10.
Be2 {[%clk 0:02:53.9]} 10... c6 {[%clk 0:02:55.2]} 11. h3 {[%clk 0:02:53.6]}
11... Bxf3 {[%clk 0:02:54.8]} 12. Bxf3 {[%clk 0:02:54.5]} 12... Qa5 {[%clk
0:02:53.7]} 13. Re1 {[%clk 0:02:54]} 13... Rfc8 {[%clk 0:02:52.8]} 14. Bd2
{[%clk 0:02:53.5]} 14... Ne5 {[%clk 0:02:51.1]} 15. Be2 {[%clk 0:02:53.2]} 15...
cxd5 {[%clk 0:02:48.3]} 16. cxd5 {[%clk 0:02:52.2]} 16... Qd8 {[%clk 0:02:48.9]}
17. Qa4 {[%clk 0:02:51.1]} 17... Nfd7 {[%clk 0:02:47.8]} 18. Rac1 {[%clk
0:02:48]} 18... Nb6 {[%clk 0:02:46.8]} 19. Qd1 {[%clk 0:02:45.3]} 19... Nbc4
{[%clk 0:02:45.1]} 20. b3 {[%clk 0:02:44.8]} 20... Nxd2 {[%clk 0:02:44.3]} 21.
Qxd2 {[%clk 0:02:45.7]} 21... Qa5 {[%clk 0:02:44.5]} 22. Nb1 {[%clk 0:02:35.9]}
22... Qxd2 {[%clk 0:02:43]} 23. Nxd2 {[%clk 0:02:36.8]} 23... Bh6 {[%clk
0:02:43.4]} 24. Rxc8+ {[%clk 0:02:31.3]} 24... Rxc8 {[%clk 0:02:44.3]} 25. Nc4
{[%clk 0:02:17.9]} 25... Nd7 {[%clk 0:02:43.3]} 26. a4 {[%clk 0:02:08.3]} 26...
Nc5 {[%clk 0:02:39.7]} 27. Bg4 {[%clk 0:02:05.5]} 27... Rc7 {[%clk 0:02:39.2]}
28. e5 {[%clk 0:02:00.8]} 28... dxe5 {[%clk 0:02:37.6]} 29. Rxe5 {[%clk
0:01:58.3]} 29... Nxb3 {[%clk 0:02:33.2]} 0-1

[Event "*** SCC Grand Prix: Titled Tuesday Blitz"]
[Site "Chess.com"]
[Date "2020.07.07"]
[Round "1"]
[White "cukin84"]
[Black "TigranMukhutdinov"]
[Result "0-1"]
[WhiteElo "2170"]
[BlackElo "2532"]
[TimeControl "180+1"]
[EndTime "10:03:23 PDT"]
[Termination "TigranMukhutdinov won by resignation"]

1. e4 {[%clk 0:03:00.9]} 1... c5 {[%clk 0:02:59.8]} 2. Nc3 {[%clk 0:03:00.3]}
2... Nc6 {[%clk 0:02:59.8]} 3. Bb5 {[%clk 0:02:59.6]} 3... Nd4 {[%clk
0:03:00.1]} 4. Bc4 {[%clk 0:02:59.3]} 4... e6 {[%clk 0:03:00.5]} 5. Nf3 {[%clk
0:02:59.4]} 5... Nf6 {[%clk 0:02:58.5]} 6. d3 {[%clk 0:02:58.8]} 6... Be7 {[%clk
0:02:56.5]} 7. Nxd4 {[%clk 0:02:57.2]} 7... cxd4 {[%clk 0:02:56.3]} 8. Ne2
{[%clk 0:02:57.2]} 8... d5 {[%clk 0:02:53.8]} 9. Bb5+ {[%clk 0:02:56.1]} 9...
Bd7 {[%clk 0:02:53.6]} 10. Bxd7+ {[%clk 0:02:55.5]} 10... Qxd7 {[%clk
0:02:54.5]} 11. Ng3 {[%clk 0:02:53.2]} 11... dxe4 {[%clk 0:02:53.9]} 12. Nxe4
{[%clk 0:02:51.9]} 12... Nxe4 {[%clk 0:02:51.3]} 13. dxe4 {[%clk 0:02:52]} 13...
O-O {[%clk 0:02:51.3]} 14. O-O {[%clk 0:02:51.6]} 14... Rfd8 {[%clk 0:02:49.7]}
15. Bf4 {[%clk 0:02:49.9]} 15... Rac8 {[%clk 0:02:48.4]} 16. Qd3 {[%clk
0:02:48.8]} 16... Qc6 {[%clk 0:02:46.9]} 17. Rac1 {[%clk 0:02:44.9]} 17... f6
{[%clk 0:02:33.6]} 18. Bg3 {[%clk 0:02:44.1]} 18... e5 {[%clk 0:02:31.6]} 19. f4
{[%clk 0:02:43.1]} 19... Bd6 {[%clk 0:02:16.5]} 20. fxe5 {[%clk 0:02:41]} 20...
Bxe5 {[%clk 0:02:16.7]} 21. Bxe5 {[%clk 0:02:40.4]} 21... fxe5 {[%clk
0:02:17.6]} 22. Rf5 {[%clk 0:02:39.4]} 22... Qb6 {[%clk 0:02:13.1]} 23. Rxe5
{[%clk 0:02:20.7]} 23... Qxb2 {[%clk 0:02:11.7]} 24. Qb3+ {[%clk 0:02:09.4]}
24... Qxb3 {[%clk 0:02:10.2]} 25. axb3 {[%clk 0:02:09.2]} 25... d3 {[%clk
0:02:10.9]} 26. c4 {[%clk 0:02:09]} 26... d2 {[%clk 0:01:54.8]} 27. Rd1 {[%clk
0:02:08.3]} 27... Rd3 {[%clk 0:01:55.2]} 28. Rc5 {[%clk 0:02:02.1]} 28... Rxc5
{[%clk 0:01:53.7]} 0-1

[Event "*** SCC Grand Prix: Titled Tuesday Blitz"]
[Site "Chess.com"]
[Date "2020.07.07"]
[Round "1"]
[White "mikheeva86"]
[Black "LedakovAlexandr"]
[Result "0-1"]
[WhiteElo "1913"]
[BlackElo "2476"]
[TimeControl "180+1"]
[EndTime "10:03:41 PDT"]
[Termination "LedakovAlexandr won by resignation"]

1. e4 {[%clk 0:02:15.4]} 1... Nc6 {[%clk 0:03:00.9]} 2. d4 {[%clk 0:02:11.9]}
2... e5 {[%clk 0:03:01.1]} 3. d5 {[%clk 0:02:11.1]} 3... Nce7 {[%clk 0:03:01.6]}
4. d6 {[%clk 0:02:09.2]} 4... cxd6 {[%clk 0:03:00.1]} 5. Qxd6 {[%clk 0:02:08.1]}
5... Nc6 {[%clk 0:02:59.6]} 6. Qd1 {[%clk 0:02:06.5]} 6... Nf6 {[%clk
0:02:59.1]} 7. Bg5 {[%clk 0:02:00.4]} 7... Qb6 {[%clk 0:02:54.2]} 8. Bxf6 {[%clk
0:01:45.1]} 8... Qxb2 {[%clk 0:02:51.7]} 9. Bxe5 {[%clk 0:01:44.7]} 9... Nxe5
{[%clk 0:02:46.2]} 10. Nd2 {[%clk 0:01:44.3]} 10... Bb4 {[%clk 0:02:44.5]} 11.
Bd3 {[%clk 0:01:27.4]} 11... Nxd3+ {[%clk 0:02:36]} 12. cxd3 {[%clk 0:01:15.7]}
12... Bxd2+ {[%clk 0:02:34.9]} 13. Kf1 {[%clk 0:01:12.6]} 13... Bh6 {[%clk
0:02:31.3]} 14. Rb1 {[%clk 0:01:08.1]} 14... Qa3 {[%clk 0:02:30.6]} 15. Qb3
{[%clk 0:00:55.5]} 15... Qxb3 {[%clk 0:02:24.9]} 16. Rxb3 {[%clk 0:00:53.9]}
16... b6 {[%clk 0:02:25.4]} 17. Ne2 {[%clk 0:00:52.1]} 17... Ke7 {[%clk
0:02:20.5]} 18. Nf4 {[%clk 0:00:53]} 18... Bxf4 {[%clk 0:02:19.8]} 19. d4 {[%clk
0:00:53.8]} 0-1

[Event "*** SCC Grand Prix: Titled Tuesday Blitz"]
[Site "Chess.com"]
[Date "2020.07.07"]
[Round "1"]
[White "NikolaGry"]
[Black "hectorfiori"]
[Result "1-0"]
[WhiteElo "2629"]
[BlackElo "2306"]
[TimeControl "180+1"]
[EndTime "10:03:44 PDT"]
[Termination "NikolaGry won by resignation"]

1. b3 {[%clk 0:02:59.1]} 1... d6 {[%clk 0:02:57.8]} 2. Bb2 {[%clk 0:02:58.2]}
2... e5 {[%clk 0:02:57.9]} 3. e3 {[%clk 0:02:58.4]} 3... f5 {[%clk 0:02:56.7]}
4. c4 {[%clk 0:02:58.3]} 4... Nf6 {[%clk 0:02:57]} 5. Nf3 {[%clk 0:02:58.1]}
5... g6 {[%clk 0:02:57.4]} 6. d4 {[%clk 0:02:57.6]} 6... e4 {[%clk 0:02:55.6]}
7. Nfd2 {[%clk 0:02:57.6]} 7... Bg7 {[%clk 0:02:55.8]} 8. d5 {[%clk 0:02:54.1]}
8... O-O {[%clk 0:02:55.7]} 9. Be2 {[%clk 0:02:53.6]} 9... c5 {[%clk 0:02:51.5]}
10. dxc6 {[%clk 0:02:52.3]} 10... bxc6 {[%clk 0:02:48.6]} 11. O-O {[%clk
0:02:51.7]} 11... Be6 {[%clk 0:02:39.5]} 12. Nc3 {[%clk 0:02:47.3]} 12... Nbd7
{[%clk 0:02:36.9]} 13. h3 {[%clk 0:02:45.3]} 13... Qe7 {[%clk 0:02:23.5]} 14.
Qc2 {[%clk 0:02:38.6]} 14... Rac8 {[%clk 0:02:21.9]} 15. Rae1 {[%clk 0:02:37.3]}
15... d5 {[%clk 0:02:20.8]} 16. f4 {[%clk 0:02:34.2]} 16... exf3 {[%clk
0:01:56.1]} 17. Nxf3 {[%clk 0:02:27.4]} 17... Nc5 {[%clk 0:01:46.8]} 18. Ba3
{[%clk 0:02:20.5]} 18... Nfd7 {[%clk 0:01:40.4]} 19. Na4 {[%clk 0:02:15.9]}
19... dxc4 {[%clk 0:01:31.9]} 20. Bxc4 {[%clk 0:02:10.4]} 1-0

[Event "*** SCC Grand Prix: Titled Tuesday Blitz"]
[Site "Chess.com"]
[Date "2020.07.07"]
[Round "1"]
[White "BakaPG"]
[Black "ZverevLev"]
[Result "1-0"]
[WhiteElo "2664"]
[BlackElo "2345"]
[TimeControl "180+1"]
[EndTime "10:03:47 PDT"]
[Termination "BakaPG won by resignation"]

1. e4 {[%clk 0:02:59.4]} 1... e5 {[%clk 0:02:55.7]} 2. Nf3 {[%clk 0:02:58.7]}
2... Nc6 {[%clk 0:02:54.5]} 3. Bb5 {[%clk 0:02:58.4]} 3... a6 {[%clk 0:02:52.9]}
4. Ba4 {[%clk 0:02:58.4]} 4... Nf6 {[%clk 0:02:51.4]} 5. O-O {[%clk 0:02:58]}
5... Be7 {[%clk 0:02:49.7]} 6. Re1 {[%clk 0:02:57.4]} 6... b5 {[%clk 0:02:44.5]}
7. Bb3 {[%clk 0:02:57.5]} 7... d6 {[%clk 0:02:39.6]} 8. a4 {[%clk 0:02:57.4]}
8... Bd7 {[%clk 0:02:34.4]} 9. c3 {[%clk 0:02:56.9]} 9... O-O {[%clk 0:02:33.1]}
10. d3 {[%clk 0:02:56.1]} 10... Na5 {[%clk 0:02:27.8]} 11. Bc2 {[%clk
0:02:55.5]} 11... c5 {[%clk 0:02:26.1]} 12. Nbd2 {[%clk 0:02:55.5]} 12... Nc6
{[%clk 0:02:21.5]} 13. Nf1 {[%clk 0:02:54.2]} 13... h6 {[%clk 0:02:17]} 14. Ng3
{[%clk 0:02:53.3]} 14... Qc7 {[%clk 0:02:05.2]} 15. Nh4 {[%clk 0:02:46.1]} 15...
d5 {[%clk 0:02:00.4]} 16. Nhf5 {[%clk 0:02:44.8]} 16... Rfe8 {[%clk 0:01:43.5]}
17. Qf3 {[%clk 0:02:42.2]} 17... dxe4 {[%clk 0:01:42.5]} 18. dxe4 {[%clk
0:02:41.5]} 18... bxa4 {[%clk 0:01:29.7]} 19. Bxa4 {[%clk 0:02:37.6]} 19... Nh7
{[%clk 0:01:23.6]} 20. Bb3 {[%clk 0:02:34.6]} 20... Be6 {[%clk 0:01:21]} 21. Bd5
{[%clk 0:02:32.1]} 21... Rad8 {[%clk 0:01:17.2]} 22. Rxa6 {[%clk 0:02:29.6]}
22... Ng5 {[%clk 0:01:06.6]} 23. Bxg5 {[%clk 0:02:25.4]} 23... Bxg5 {[%clk
0:01:07.5]} 24. Rxc6 {[%clk 0:02:23.9]} 1-0

[Event "*** SCC Grand Prix: Titled Tuesday Blitz"]
[Site "Chess.com"]
[Date "2020.07.07"]
[Round "1"]
[White "GuuBol"]
[Black "AliKa2810"]
[Result "0-1"]
[WhiteElo "2248"]
[BlackElo "2583"]
[TimeControl "180+1"]
[EndTime "10:03:48 PDT"]
[Termination "AliKa2810 won by resignation"]

1. e4 {[%clk 0:02:59.6]} 1... e6 {[%clk 0:02:59.3]} 2. d4 {[%clk 0:02:59.5]}
2... d5 {[%clk 0:02:59.9]} 3. exd5 {[%clk 0:03:00.4]} 3... exd5 {[%clk
0:02:59.8]} 4. c4 {[%clk 0:03:01.1]} 4... Nf6 {[%clk 0:02:58.9]} 5. Nc3 {[%clk
0:03:01.7]} 5... Bd6 {[%clk 0:02:53.6]} 6. Nf3 {[%clk 0:02:58.8]} 6... O-O
{[%clk 0:02:53]} 7. Bd3 {[%clk 0:02:41.8]} 7... Re8+ {[%clk 0:02:50.9]} 8. Be3
{[%clk 0:02:40.9]} 8... dxc4 {[%clk 0:02:41.2]} 9. Bxc4 {[%clk 0:02:40.7]} 9...
Bg4 {[%clk 0:02:26.3]} 10. Qb3 {[%clk 0:02:28.3]} 10... Qe7 {[%clk 0:02:02.3]}
11. Qxb7 {[%clk 0:02:15.8]} 11... Nbd7 {[%clk 0:02:02.1]} 12. O-O {[%clk
0:02:02.2]} 12... Rab8 {[%clk 0:02:01.5]} 13. Qc6 {[%clk 0:01:43.2]} 13... Rb6
{[%clk 0:02:00.6]} 14. Qa4 {[%clk 0:01:42.2]} 14... Bxf3 {[%clk 0:01:51.4]} 15.
gxf3 {[%clk 0:01:43.1]} 15... Rb4 {[%clk 0:01:51]} 16. Qa6 {[%clk 0:01:40.9]}
16... Nb8 {[%clk 0:01:50.7]} 17. Bxf7+ {[%clk 0:01:28.4]} 17... Qxf7 {[%clk
0:01:49.6]} 18. Qxa7 {[%clk 0:01:28]} 18... Qg6+ {[%clk 0:01:47]} 19. Kh1 {[%clk
0:01:26.9]} 19... Qh5 {[%clk 0:01:47]} 20. f4 {[%clk 0:01:22.3]} 20... Ng4
{[%clk 0:01:46.7]} 0-1

[Event "*** SCC Grand Prix: Titled Tuesday Blitz"]
[Site "Chess.com"]
[Date "2020.07.07"]
[Round "1"]
[White "mamey78"]
[Black "sergiochess83"]
[Result "1/2-1/2"]
[WhiteElo "2440"]
[BlackElo "2838"]
[TimeControl "180+1"]
[EndTime "10:03:52 PDT"]
[Termination "Game drawn by repetition"]

1. e4 {[%clk 0:02:59.7]} 1... c5 {[%clk 0:02:55.5]} 2. Nf3 {[%clk 0:02:57.6]}
2... d6 {[%clk 0:02:54.7]} 3. d4 {[%clk 0:02:56.8]} 3... cxd4 {[%clk 0:02:54.9]}
4. Nxd4 {[%clk 0:02:57.7]} 4... Nf6 {[%clk 0:02:55.4]} 5. Nc3 {[%clk 0:02:58]}
5... a6 {[%clk 0:02:55.9]} 6. Bg5 {[%clk 0:02:58.1]} 6... Nbd7 {[%clk
0:02:47.8]} 7. Qe2 {[%clk 0:02:57]} 7... h6 {[%clk 0:02:45.7]} 8. Bh4 {[%clk
0:02:56.1]} 8... g6 {[%clk 0:02:45.7]} 9. f4 {[%clk 0:02:56.1]} 9... Qc7 {[%clk
0:02:43.2]} 10. O-O-O {[%clk 0:02:55.1]} 10... Bg7 {[%clk 0:02:43.6]} 11. Bxf6
{[%clk 0:02:29.3]} 11... Nxf6 {[%clk 0:02:36]} 12. e5 {[%clk 0:02:28.1]} 12...
dxe5 {[%clk 0:02:35]} 13. fxe5 {[%clk 0:02:27.3]} 13... Ng4 {[%clk 0:02:33.4]}
14. e6 {[%clk 0:02:24.7]} 14... Qf4+ {[%clk 0:02:29]} 15. Kb1 {[%clk 0:02:22.3]}
15... Bxd4 {[%clk 0:02:25.8]} 16. Nd5 {[%clk 0:02:01.1]} 16... Qe5 {[%clk
0:02:06.3]} 17. Rxd4 {[%clk 0:01:42.3]} 17... Qxd4 {[%clk 0:02:01.2]} 18. exf7+
{[%clk 0:01:40.1]} 18... Kxf7 {[%clk 0:02:01.5]} 19. Qxe7+ {[%clk 0:01:40]}
19... Kg8 {[%clk 0:02:01.3]} 20. Bc4 {[%clk 0:01:22.7]} 20... Qxc4 {[%clk
0:01:58.6]} 21. Qe8+ {[%clk 0:01:19.5]} 21... Kg7 {[%clk 0:01:58.9]} 22. Qe7+
{[%clk 0:01:19.4]} 22... Kg8 {[%clk 0:01:59.3]} 23. Qe8+ {[%clk 0:01:19.6]}
23... Kg7 {[%clk 0:01:59.5]} 24. Qe7+ {[%clk 0:01:18.4]} 24... Kg8 {[%clk
0:01:57.5]} 1/2-1/2

[Event "*** SCC Grand Prix: Titled Tuesday Blitz"]
[Site "Chess.com"]
[Date "2020.07.07"]
[Round "1"]
[White "Ariadna_Atreides"]
[Black "PIwan"]
[Result "0-1"]
[WhiteElo "2074"]
[BlackElo "2502"]
[TimeControl "180+1"]
[EndTime "10:03:53 PDT"]
[Termination "PIwan won by resignation"]

1. d4 {[%clk 0:03:00.5]} 1... d5 {[%clk 0:02:59.8]} 2. Nf3 {[%clk 0:03:00.1]}
2... Nf6 {[%clk 0:02:59.5]} 3. e3 {[%clk 0:02:59.9]} 3... Bg4 {[%clk 0:02:56.9]}
4. Be2 {[%clk 0:02:59.6]} 4... Nbd7 {[%clk 0:02:56.1]} 5. O-O {[%clk 0:02:58.7]}
5... e6 {[%clk 0:02:56.6]} 6. h3 {[%clk 0:02:57.8]} 6... Bh5 {[%clk 0:02:55.8]}
7. b3 {[%clk 0:02:57.7]} 7... Bd6 {[%clk 0:02:55.1]} 8. Bb2 {[%clk 0:02:58]}
8... O-O {[%clk 0:02:53.2]} 9. Ne5 {[%clk 0:02:52.1]} 9... Bxe2 {[%clk
0:02:54.1]} 10. Qxe2 {[%clk 0:02:51.8]} 10... c5 {[%clk 0:02:41.5]} 11. Nd2
{[%clk 0:02:49.2]} 11... Rc8 {[%clk 0:02:39.5]} 12. dxc5 {[%clk 0:02:43.6]}
12... Bxe5 {[%clk 0:02:38.7]} 13. Bxe5 {[%clk 0:02:42.1]} 13... Nxe5 {[%clk
0:02:39.6]} 14. b4 {[%clk 0:02:42.2]} 14... b6 {[%clk 0:02:34.7]} 15. cxb6
{[%clk 0:02:39.4]} 15... Qxb6 {[%clk 0:02:33.5]} 16. Nb3 {[%clk 0:02:34.5]}
16... Qxb4 {[%clk 0:02:31.2]} 17. Rac1 {[%clk 0:02:33.6]} 17... Qc4 {[%clk
0:02:26.3]} 18. Qd2 {[%clk 0:02:31.3]} 18... Nc6 {[%clk 0:02:25.4]} 19. Rfd1
{[%clk 0:02:28.2]} 19... Ne4 {[%clk 0:02:25.2]} 20. Qe1 {[%clk 0:02:27.4]} 20...
Nc3 {[%clk 0:02:20.9]} 21. Rd2 {[%clk 0:02:24.5]} 21... Nxa2 {[%clk 0:02:20.5]}
22. Ra1 {[%clk 0:02:24]} 22... Nc3 {[%clk 0:02:16.7]} 23. Rd3 {[%clk 0:02:17.9]}
23... Ne4 {[%clk 0:02:14.2]} 24. f3 {[%clk 0:02:14.8]} 24... Qxc2 {[%clk
0:02:10.8]} 25. Rad1 {[%clk 0:02:11.2]} 25... Ne5 {[%clk 0:02:03.9]} 26. Rd4
{[%clk 0:02:05.8]} 26... Nc3 {[%clk 0:01:57.5]} 27. Na1 {[%clk 0:01:58.9]} 27...
Qg6 {[%clk 0:01:40.6]} 28. R1d2 {[%clk 0:01:50.9]} 28... Nxf3+ {[%clk
0:01:34.4]} 0-1